fUSD/lending_fUSD_20250104
["ID","MTS","AMOUNT","RATE_DAILY","PERIOD"]
[347613187,1735951839152,-644.15,0.00011512,2]
[347613188,1735951839161,-500.0,0.00011512,2]
[347613189,1735951839171,-873.86,0.00011512,2]
[347613190,1735951839180,-500.0,0.00011512,2]
[347613191,1735951839189,-1000.06,0.00011512,2]
[347613192,1735951839199,-4235.63,0.00011512,2]
[347613193,1735951839208,-566.21,0.00011512,2]
[347613194,1735951839217,-500.0,0.00011512,2]
[347613195,1735951839227,-500.0,0.00011512,2]
[347613196,1735951839236,-500.0,0.00011512,2]
[347613197,1735951839245,-1068.43,0.00011512,2]
[347613198,1735951839254,-500.0,0.00011512,2]
[347613199,1735951839264,-500.0,0.00011512,2]
[347613200,1735951839274,-500.0,0.00011512,2]
[347613201,1735951839283,-693.78,0.00011512,2]
[347613202,1735951839293,-500.0,0.00011512,2]
[347613203,1735951839302,-500.0,0.00011512,2]
[347613204,1735951839312,-500.0,0.00011512,2]
[347613205,1735951839321,-215.11,0.00011512,2]
[347613206,1735951839331,-500.0,0.00011512,2]
[347613207,1735951839341,-1566.66,0.00011512,2]
[347613208,1735951839350,-500.0,0.00011512,2]
[347613209,1735951839359,-3362.84,0.00011512,2]
[347613210,1735951839368,-598.57,0.00011512,2]
[347613211,1735951839378,-1386.25,0.00011512,2]
[347613212,1735951839387,-500.0,0.00011512,2]
[347613213,1735951839397,-1777.88,0.00011512,2]
[347613214,1735951839407,-500.0,0.00011512,2]
[347613215,1735951839416,-500.0,0.00011512,2]
[347613216,1735951839426,-500.0,0.00011512,2]
[347613217,1735951839436,-500.0,0.00011512,2]
[347613218,1735951839446,-1305.71,0.00011512,2]
[347613219,1735951839455,-500.0,0.00011512,2]
[347613220,1735951839464,-500.0,0.00011512,2]
[347613221,1735951839474,-500.0,0.00011512,2]
[347613222,1735951839483,-500.0,0.00011512,2]
[347613223,1735951839493,-500.0,0.00011512,2]
[347613224,1735951839503,-553.32236024,0.00011512,2]
[347613225,1735951839517,-4.13763976,0.00011512,2]
[347613226,1735951839528,-1399.58,0.00011512,2]
[347613227,1735951839538,-165.0,0.00011512,2]
[347613228,1735951839549,-500.0,0.00011512,2]
[347613229,1735951839559,-2350.13,0.00011512,2]
[347613230,1735951839569,-500.0,0.00011512,2]
[347613231,1735951839579,-693.41,0.00011512,2]
[347613232,1735951839588,-500.0,0.00011512,2]
[347613233,1735951839598,-826.42,0.00011512,2]
[347613234,1735951839608,-1334.73,0.00011512,2]
[347613235,1735951839617,-500.0,0.00011512,2]
[347613236,1735951839627,-500.0,0.00011512,2]
[347613237,1735951839637,-585.01,0.00011512,2]
[347613238,1735951839646,-500.0,0.00011512,2]
[347613239,1735951839656,-500.0,0.00011512,2]
[347613240,1735951839665,-500.0,0.00011512,2]
[347613241,1735951839675,-544.62,0.00011512,2]
[347613242,1735951839685,-500.0,0.00011512,2]
[347613243,1735951839694,-1057.64,0.00011512,2]
[347613244,1735951839704,-500.0,0.00011512,2]
[347613245,1735951839713,-2279.62,0.00011512,2]
[347613246,1735951839723,-979.52,0.00011512,2]
[347613247,1735951839732,-500.0,0.00011512,2]
[347613248,1735951839742,-500.0,0.00011512,2]
[347613249,1735951839751,-461.33,0.00011512,2]
[347613250,1735951839760,-500.0,0.00011512,2]
[347613251,1735951839770,-500.0,0.00011512,2]
[347613252,1735951839780,-737.32,0.00011512,2]
[347613253,1735951839789,-572.08,0.00011512,2]
[347613254,1735951839799,-500.0,0.00011512,2]
[347613255,1735951839811,-500.0,0.00011512,2]
[347613256,1735951839822,-500.0,0.00011512,2]
[347613257,1735951839831,-500.0,0.00011512,2]
[347613258,1735951839840,-500.0,0.00011512,2]
[347613259,1735951839853,-500.0,0.00011512,2]
[347613260,1735951839864,-257.65,0.00011512,2]
[347613261,1735951839873,-500.0,0.00011512,2]
[347613262,1735951839882,-500.0,0.00011512,2]
[347613263,1735951839893,-323.38,0.00011512,2]
[347613264,1735951839903,-1370.7,0.00011512,2]
[347613265,1735951839912,-500.0,0.00011512,2]
[347613266,1735951839921,-500.0,0.00011512,2]
[347613267,1735951839931,-1038.14,0.00011512,2]
[347613268,1735951839941,-524.54,0.00011512,2]
[347613269,1735951839950,-557.7,0.00011512,2]
[347613270,1735951839961,-500.0,0.00011512,2]
[347613271,1735951839971,-746.04,0.00011512,2]
[347613272,1735951839981,-440.3,0.00011512,2]
[347613273,1735951839991,-500.0,0.00011512,2]
[347613274,1735951840001,-500.0,0.00011512,2]
[347613275,1735951840011,-500.0,0.00011529,2]
[347613276,1735951840020,-150.0,0.00011578,2]
[347613277,1735951840034,-150.0,0.00011578,2]
[347613278,1735951840044,-150.0,0.00011578,2]
[347613279,1735951840053,-150.0,0.00011578,2]
[347613280,1735951840063,-150.0,0.00011578,2]
[347613281,1735951840072,-150.0,0.00011578,2]
[347613282,1735951840081,-150.0,0.00011578,2]
[347613283,1735951840091,-150.0,0.00011578,2]
[347613284,1735951840100,-400.0,0.000116,4]
[347613285,1735951840110,-1000.0,0.00011603,2]
[347613286,1735951840119,-150.0,0.0001166,2]
[347613287,1735951840128,-150.0,0.0001166,2]
[347613288,1735951840138,-304.032,0.0001168,2]
[347613289,1735951840147,-400.0,0.000117,4]
[347613290,1735951840156,-494.83,0.0001178,2]
[347613291,1735951840166,-494.9,0.0001178,2]
[347613292,1735951840175,-500.0,0.00011786,2]
[347613293,1735951840184,-500.0,0.00011786,2]
[347613294,1735951840193,-500.0,0.00011786,2]
[347613295,1735951840203,-500.0,0.00011786,2]
[347613296,1735951840212,-438.8,0.00011786,2]
[347613297,1735951840222,-500.0,0.00011786,2]
[347613298,1735951840231,-500.0,0.00011786,2]
[347613299,1735951840241,-509.79,0.00011786,2]
[347613300,1735951840250,-500.0,0.00011786,2]
[347613301,1735951840260,-592.070202,0.00011786,2]
[347613302,1735951840269,-630.77,0.00011786,2]
[347613303,1735951840281,-664.3,0.00011786,2]
[347613304,1735951840290,-500.0,0.00011786,2]
[347613305,1735951840299,-590.26,0.00011786,2]
[347613306,1735951840308,-587.6,0.00011786,2]
[347613307,1735951840318,-500.0,0.00011786,2]
[347613308,1735951840327,-963.78,0.00011786,2]
[347613309,1735951840336,-500.0,0.00011786,2]
[347613310,1735951840345,-500.0,0.00011786,2]
[347613311,1735951840354,-500.0,0.00011786,2]
[347613312,1735951840364,-500.0,0.00011786,2]
[347613313,1735951840373,-500.0,0.00011786,2]
[347613314,1735951840382,-573.29,0.00011786,2]
[347613315,1735951840391,-500.0,0.00011786,2]
[347613316,1735951840400,-500.0,0.00011786,2]
[347613317,1735951840409,-562.79,0.00011786,2]
[347613318,1735951840419,-500.0,0.00011786,2]
[347613319,1735951840428,-500.0,0.00011786,2]
[347613320,1735951840437,-500.0,0.00011786,2]
[347613321,1735951840446,-500.0,0.00011786,2]
[347613322,1735951840455,-500.0,0.00011786,2]
[347613323,1735951840464,-500.0,0.00011786,2]
[347613324,1735951840474,-376.442862,0.00011786,2]
[347613325,1735951840482,-500.0,0.00011786,2]
[347613326,1735951840492,-500.0,0.00011786,2]
[347613327,1735951840501,-3229.79,0.00011786,2]
[347613328,1735951840510,-649.03,0.00011786,2]
[347613329,1735951840519,-281.980763,0.00011786,2]
[347613330,1735951840530,-551.85,0.00011786,2]
[347613331,1735951840539,-706.68,0.00011786,2]
[347613332,1735951840548,-500.0,0.00011786,2]
[347613333,1735951840557,-500.0,0.00011786,2]
[347613334,1735951840566,-500.0,0.00011786,2]
[347613335,1735951840575,-621.24,0.00011786,2]
[347613336,1735951840584,-500.0,0.00011786,2]
[347613337,1735951840593,-500.0,0.00011786,2]
[347613338,1735951840602,-568.91,0.00011786,2]
[347613339,1735951840611,-428.07,0.00011786,2]
[347613340,1735951840620,-500.0,0.00011786,2]
[347613341,1735951840630,-500.0,0.00011786,2]
[347613342,1735951840639,-2382.03,0.00011786,2]
[347613343,1735951840648,-553.13,0.00011786,2]
[347613344,1735951840658,-500.0,0.00011786,2]
[347613345,1735951840666,-789.47,0.00011786,2]
[347613346,1735951840675,-644.15,0.00011786,2]
[347613347,1735951840684,-500.0,0.00011786,2]
[347613348,1735951840693,-873.86,0.00011786,2]
[347613349,1735951840703,-288.46,0.00011786,2]
[347613350,1735951840712,-1000.06,0.00011786,2]
[347613351,1735951840721,-4235.63,0.00011786,2]
[347613352,1735951840731,-566.21,0.00011786,2]
[347613353,1735951840740,-500.0,0.00011786,2]
[347613354,1735951840749,-500.0,0.00011786,2]
[347613355,1735951840758,-1068.43,0.00011786,2]
[347613356,1735951840768,-500.0,0.00011786,2]
[347613357,1735951840777,-500.0,0.00011786,2]
[347613358,1735951840787,-500.0,0.00011786,2]
[347613359,1735951840797,-693.78,0.00011786,2]
[347613360,1735951840806,-500.0,0.00011786,2]
[347613361,1735951840819,-500.0,0.00011786,2]
[347613362,1735951840828,-500.0,0.00011786,2]
[347613363,1735951840837,-500.0,0.00011786,2]
[347613364,1735951840848,-1566.66,0.00011786,2]
[347613365,1735951840857,-500.0,0.00011786,2]
[347613367,1735951840866,-3362.84,0.00011786,2]
[347613369,1735951840876,-598.57,0.00011786,2]
[347613371,1735951840885,-1386.25,0.00011786,2]
[347613373,1735951840894,-500.0,0.00011786,2]
[347613375,1735951840904,-1777.88,0.00011786,2]
[347613377,1735951840913,-500.0,0.00011786,2]
[347613379,1735951840923,-500.0,0.00011786,2]
[347613381,1735951840932,-500.0,0.00011786,2]
[347613383,1735951840941,-500.0,0.00011786,2]
[347613385,1735951840950,-1305.71,0.00011786,2]
[347613387,1735951840959,-500.0,0.00011786,2]
[347613389,1735951840969,-500.0,0.00011786,2]
[347613391,1735951840978,-500.0,0.00011786,2]
[347613393,1735951840987,-500.0,0.00011786,2]
[347613395,1735951840997,-500.0,0.00011786,2]
[347613397,1735951841006,-557.46,0.00011786,2]
[347613399,1735951841015,-1399.58,0.00011786,2]
[347613401,1735951841025,-500.0,0.00011786,2]
[347613403,1735951841034,-2350.13,0.00011786,2]
[347613405,1735951841043,-500.0,0.00011786,2]
[347613407,1735951841052,-693.41,0.00011786,2]
[347613409,1735951841062,-500.0,0.00011786,2]
[347613411,1735951841071,-826.42,0.00011786,2]
[347613413,1735951841080,-1334.73,0.00011786,2]
[347613415,1735951841089,-500.0,0.00011786,2]
[347613417,1735951841099,-500.0,0.00011786,2]
[347613419,1735951841107,-500.0,0.00011786,2]
[347613421,1735951841117,-585.01,0.00011786,2]
[347613423,1735951841126,-500.0,0.00011786,2]
[347613425,1735951841135,-500.0,0.00011786,2]
[347613427,1735951841144,-544.62,0.00011786,2]
[347613429,1735951841153,-500.0,0.00011786,2]
[347613431,1735951841162,-1057.64,0.00011786,2]
[347613433,1735951841171,-500.0,0.00011786,2]
[347613435,1735951841181,-2279.62,0.00011786,2]
[347613437,1735951841191,-979.52,0.00011786,2]
[347613439,1735951841202,-500.0,0.00011786,2]
[347613441,1735951841210,-500.0,0.00011786,2]
[347613443,1735951841219,-500.0,0.00011786,2]
[347613445,1735951841229,-500.0,0.00011786,2]
[347613447,1735951841238,-737.32,0.00011786,2]
[347613449,1735951841249,-572.08,0.00011786,2]
[347613451,1735951841258,-500.0,0.00011786,2]
[347613453,1735951841268,-500.0,0.00011786,2]
[347613455,1735951841279,-500.0,0.00011786,2]
[347613457,1735951841288,-500.0,0.00011786,2]
[347613459,1735951841299,-500.0,0.00011786,2]
[347613461,1735951841310,-500.0,0.00011786,2]
[347613463,1735951841319,-500.0,0.00011786,2]
[347613465,1735951841328,-500.0,0.00011786,2]
[347613467,1735951841338,-1370.7,0.00011786,2]
[347613469,1735951841347,-500.0,0.00011786,2]
[347613471,1735951841356,-500.0,0.00011786,2]
[347613473,1735951841366,-1038.14,0.00011786,2]
[347613475,1735951841375,-524.54,0.00011786,2]
[347613477,1735951841384,-557.7,0.00011786,2]
[347613479,1735951841394,-500.0,0.00011786,2]
[347613481,1735951841403,-746.04,0.00011786,2]
[347613483,1735951841412,-500.0,0.00011786,2]
[347613485,1735951841421,-720.72,0.00011797,2]
[347613487,1735951841430,-37078.4992,0.00011798,2]
[347613489,1735951841439,-1000.0,0.000118,4]
[347613491,1735951841448,-538.53,0.00011805,2]
[347613493,1735951841457,-150.9,0.00011852,2]
[347613495,1735951841467,-491.88,0.00011896,2]
[347613496,1735951841476,-493.16,0.00011896,2]
[347613498,1735951841485,-664.29,0.00011896,2]
[347613500,1735951841494,-1329.89,0.00011897,2]
[347613502,1735951841504,-1147.93,0.00011897,2]
[347613504,1735951841513,-1313.67,0.00011897,2]
[347613506,1735951841523,-1926.18,0.00011897,2]
[347613508,1735951841533,-1000.0,0.00011897,2]
[347613510,1735951841542,-1078.96,0.00011897,2]
[347613512,1735951841552,-1533.89,0.00011897,2]
[347613514,1735951841561,-896.87,0.00011897,2]
[347613516,1735951841570,-3554.36,0.00011897,2]
[347613518,1735951841579,-2062.85,0.00011897,2]
[347613520,1735951841589,-150.0,0.00011967,2]
[347613522,1735951841598,-260.6253,0.0001197,2]
[347613524,1735951841607,-9598.3031,0.00011971,2]
[347613526,1735951841616,-1651.35,0.00012,2]
[347613528,1735951841626,-500.0,0.00012059,2]
[347613530,1735951841634,-500.0,0.00012059,2]
[347613532,1735951841644,-500.0,0.00012059,2]
[347613534,1735951841652,-500.0,0.00012059,2]
[347613536,1735951841661,-194.64020175,0.00012059,2]
[347613538,1735951841671,-254.63635664,0.00012059,2]
[347613540,1735951841680,-500.0,0.00012059,2]
[347613542,1735951841689,-500.0,0.00012059,2]
[347613544,1735951841698,-500.0,0.00012059,2]
[347613546,1735951841707,-500.0,0.00012059,2]
[347613548,1735951841717,-500.0,0.00012059,2]
[347613550,1735951841726,-500.0,0.00012059,2]
[347613552,1735951841735,-500.0,0.00012059,2]
[347613553,1735951841744,-500.0,0.00012059,2]
[347613555,1735951841753,-500.0,0.00012059,2]
[347613558,1735951841762,-500.0,0.00012059,2]
[347613560,1735951841771,-500.0,0.00012059,2]
[347613562,1735951841782,-500.0,0.00012059,2]
[347613564,1735951841791,-500.0,0.00012059,2]
[347613565,1735951841800,-325.4481746,0.00012059,2]
[347613567,1735951841809,-500.0,0.00012059,2]
[347613570,1735951841822,-500.0,0.00012059,2]
[347613572,1735951841832,-500.0,0.00012059,2]
[347613574,1735951841841,-500.0,0.00012059,2]
[347613575,1735951841850,-500.0,0.00012059,2]
[347613577,1735951841861,-500.0,0.00012059,2]
[347613579,1735951841870,-500.0,0.00012059,2]
[347613581,1735951841880,-500.0,0.00012059,2]
[347613583,1735951841890,-500.0,0.00012059,2]
[347613585,1735951841899,-500.0,0.00012059,2]
[347613587,1735951841908,-500.0,0.00012059,2]
[347613589,1735951841918,-500.0,0.00012059,2]
[347613591,1735951841927,-500.0,0.00012059,2]
[347613593,1735951841936,-500.0,0.00012059,2]
[347613595,1735951841945,-500.0,0.00012059,2]
[347613597,1735951841956,-500.0,0.00012059,2]
[347613598,1735951841967,-500.0,0.00012059,2]
[347613599,1735951842125,-500.0,0.00012059,2]
[347613600,1735951842135,-500.0,0.0001206,2]
[347613601,1735951842145,-261.75,0.0001206,2]
[347613602,1735951842155,-500.0,0.0001206,2]
[347613603,1735951842164,-500.0,0.0001206,2]
[347613604,1735951842174,-500.0,0.0001206,2]
[347613605,1735951842184,-500.0,0.0001206,2]
[347613606,1735951842193,-509.79,0.0001206,2]
[347613607,1735951842203,-500.0,0.0001206,2]
[347613608,1735951842212,-630.77,0.0001206,2]
[347613609,1735951842221,-664.3,0.0001206,2]
[347613610,1735951842230,-500.0,0.0001206,2]
[347613611,1735951842239,-590.26,0.0001206,2]
[347613612,1735951842248,-587.6,0.0001206,2]
[347613613,1735951842259,-500.0,0.0001206,2]
[347613614,1735951842268,-963.78,0.0001206,2]
[347613615,1735951842279,-324.22,0.0001206,2]
[347613616,1735951842290,-500.0,0.0001206,2]
[347613617,1735951842299,-500.0,0.0001206,2]
[347613618,1735951842308,-500.0,0.0001206,2]
[347613619,1735951842317,-500.0,0.0001206,2]
[347613620,1735951842327,-573.29,0.0001206,2]
[347613621,1735951842335,-500.0,0.0001206,2]
[347613622,1735951842345,-500.0,0.0001206,2]
[347613623,1735951842354,-562.79,0.0001206,2]
[347613624,1735951842365,-500.0,0.0001206,2]
[347613625,1735951842375,-500.0,0.0001206,2]
[347613626,1735951842384,-500.0,0.0001206,2]
[347613627,1735951842393,-500.0,0.0001206,2]
[347613628,1735951842402,-500.0,0.0001206,2]
[347613629,1735951842413,-305.72,0.0001206,2]
[347613630,1735951842422,-376.442862,0.0001206,2]
[347613631,1735951842432,-500.0,0.0001206,2]
[347613632,1735951842441,-500.0,0.0001206,2]
[347613633,1735951842452,-3229.79,0.0001206,2]
[347613634,1735951842461,-649.03,0.0001206,2]
[347613635,1735951842471,-281.980763,0.0001206,2]
[347613636,1735951842480,-551.85,0.0001206,2]
[347613637,1735951842490,-706.68,0.0001206,2]
[347613638,1735951842500,-500.0,0.0001206,2]
[347613639,1735951842510,-500.0,0.0001206,2]
[347613640,1735951842520,-500.0,0.0001206,2]
[347613641,1735951842531,-621.24,0.0001206,2]
[347613642,1735951842540,-583.13526678,0.0001206,2]
[347613643,1735951842550,-500.0,0.0001206,2]
[347613644,1735951842560,-568.91,0.0001206,2]
[347613645,1735951842570,-500.0,0.0001206,2]
[347613646,1735951842580,-500.0,0.0001206,2]
[347613647,1735951842589,-2382.03,0.0001206,2]
[347613648,1735951842599,-553.13,0.0001206,2]
[347613649,1735951842609,-500.0,0.0001206,2]
[347613650,1735951842618,-789.47,0.0001206,2]
[347613651,1735951842628,-644.15,0.0001206,2]
[347613652,1735951842638,-500.0,0.0001206,2]
[347613653,1735951842648,-873.86,0.0001206,2]
[347613654,1735951842658,-1000.06,0.0001206,2]
[347613655,1735951842667,-4235.63,0.0001206,2]
[347613657,1735951842677,-566.21,0.0001206,2]
[347613659,1735951842687,-500.0,0.0001206,2]
[347613661,1735951842697,-500.0,0.0001206,2]
[347613664,1735951842707,-1068.43,0.0001206,2]
[347613667,1735951842716,-500.0,0.0001206,2]
[347613669,1735951842725,-374.4,0.0001206,2]
[347613671,1735951842734,-500.0,0.0001206,2]
[347613673,1735951842743,-693.78,0.0001206,2]
[347613675,1735951842752,-500.0,0.0001206,2]
[347613678,1735951842762,-500.0,0.0001206,2]
[347613680,1735951842771,-649.51415731,0.0001206,2]
[347613681,1735951842782,-649.22,0.0001206,2]
[347613682,1735951842791,-1566.66,0.0001206,2]
[347613683,1735951842801,-500.0,0.0001206,2]
[347613684,1735951842812,-3362.84,0.0001206,2]
[347613685,1735951842822,-598.57,0.0001206,2]
[347613686,1735951842831,-1386.25,0.0001206,2]
[347613687,1735951842841,-500.0,0.0001206,2]
[347613688,1735951842850,-1777.88,0.0001206,2]
[347613689,1735951842860,-500.0,0.0001206,2]
[347613692,1735951842869,-500.0,0.0001206,2]
[347613693,1735951842878,-530.25,0.0001206,2]
[347613695,1735951842887,-500.0,0.0001206,2]
[347613697,1735951842897,-1305.71,0.0001206,2]
[347613699,1735951842906,-500.0,0.0001206,2]
[347613702,1735951842916,-500.0,0.0001206,2]
[347613703,1735951842926,-500.0,0.0001206,2]
[347613705,1735951842935,-500.0,0.0001206,2]
[347613707,1735951842945,-351.9,0.0001206,2]
[347613709,1735951842954,-557.46,0.0001206,2]
[347613711,1735951842964,-1399.58,0.0001206,2]
[347613713,1735951842974,-500.0,0.0001206,2]
[347613715,1735951842983,-2350.13,0.0001206,2]
[347613717,1735951842993,-500.0,0.0001206,2]
[347613719,1735951843002,-693.41,0.0001206,2]
[347613721,1735951843011,-500.0,0.0001206,2]
[347613723,1735951843021,-826.42,0.0001206,2]
[347613725,1735951843031,-1334.73,0.0001206,2]
[347613727,1735951843040,-500.0,0.0001206,2]
[347613729,1735951843049,-500.0,0.0001206,2]
[347613731,1735951843059,-500.0,0.0001206,2]
[347613733,1735951843068,-585.01,0.0001206,2]
[347613735,1735951843077,-500.0,0.0001206,2]
[347613737,1735951843086,-500.0,0.0001206,2]
[347613739,1735951843095,-544.62,0.0001206,2]
[347613741,1735951843105,-500.0,0.0001206,2]
[347613743,1735951843114,-1057.64,0.0001206,2]
[347613745,1735951843124,-500.0,0.0001206,2]
[347613747,1735951843133,-2279.62,0.0001206,2]
[347613749,1735951843142,-979.52,0.0001206,2]
[347613751,1735951843151,-500.0,0.0001206,2]
[347613753,1735951843160,-500.0,0.0001206,2]
[347613755,1735951843170,-500.0,0.0001206,2]
[347613757,1735951843179,-422.66,0.0001206,2]
[347613759,1735951843188,-737.32,0.0001206,2]
[347613761,1735951843198,-572.08,0.0001206,2]
[347613763,1735951843207,-506.72,0.0001206,2]
[347613765,1735951843216,-500.0,0.0001206,2]
[347613767,1735951843225,-500.0,0.0001206,2]
[347613769,1735951843234,-500.0,0.0001206,2]
[347613770,1735951843244,-500.0,0.0001206,2]
[347613772,1735951843253,-500.0,0.0001206,2]
[347613774,1735951843263,-500.0,0.0001206,2]
[347613776,1735951843272,-500.0,0.0001206,2]
[347613778,1735951843283,-1370.7,0.0001206,2]
[347613780,1735951843292,-500.0,0.0001206,2]
[347613781,1735951843301,-500.0,0.0001206,2]
[347613782,1735951843311,-1038.14,0.0001206,2]
[347613783,1735951843320,-524.54,0.0001206,2]
[347613784,1735951843329,-557.7,0.0001206,2]
[347613785,1735951843338,-500.0,0.0001206,2]
[347613786,1735951843347,-746.04,0.0001206,2]
[347613787,1735951843356,-500.0,0.0001206,2]
[347613788,1735951843365,-500.0,0.00012069,2]
[347613789,1735951843375,-500.0,0.00012069,2]
[347613790,1735951843384,-500.0,0.00012069,2]
[347613791,1735951843393,-500.0,0.00012069,2]
[347613792,1735951843402,-275.06825494,0.00012069,2]
[347613793,1735951843411,-500.0,0.00012069,2]
[347613794,1735951843421,-500.0,0.00012069,2]
[347613795,1735951843430,-500.0,0.00012069,2]
[347613796,1735951843439,-500.0,0.00012069,2]
[347613797,1735951843448,-500.0,0.00012069,2]
[347613798,1735951843457,-500.0,0.00012069,2]
[347613799,1735951843466,-216.89016306,0.00012069,2]
[347613800,1735951843509,-269.24235348,0.00011512,2]
[347613801,1735951843520,-108.1041482,0.00011512,2]
[347613802,1735951843530,-283.10983694,0.00012069,2]
[347613803,1735951843539,-190.46652268,0.00012069,2]
[347613804,1735951843551,-309.53347732,0.00012069,2]
[347613805,1735951843560,-83.61652268,0.00012069,2]
[347613806,1735951843571,-379.99999,0.00012069,2]
[347613807,1735951843583,-36.38348732,0.00012069,2]
[347613808,1735951843592,-500.0,0.00012069,2]
[347613809,1735951843602,-500.0,0.00012069,2]
[347613810,1735951843612,-500.0,0.00012069,2]
[347613811,1735951843621,-500.0,0.00012069,2]
[347613812,1735951843632,-500.0,0.00012069,2]
[347613813,1735951843641,-500.0,0.00012069,2]
[347613814,1735951843651,-500.0,0.00012069,2]
[347613815,1735951843661,-500.0,0.00012069,2]
[347613816,1735951843670,-500.0,0.00012069,2]
[347613817,1735951843680,-555.35,0.00012069,2]
[347613818,1735951843690,-520.89,0.00012069,2]
[347613819,1735951843699,-500.0,0.00012069,2]
[347613820,1735951843708,-500.0,0.00012069,2]
[347613821,1735951843718,-500.0,0.00012069,2]
[347613822,1735951843727,-500.0,0.00012069,2]
[347613823,1735951843737,-500.0,0.00012069,2]
[347613824,1735951843746,-564.01,0.00012069,2]
[347613825,1735951843755,-500.0,0.00012069,2]
[347613826,1735951843764,-500.0,0.00012069,2]
[347613827,1735951843774,-375.85881962,0.00012069,2]
[347613828,1735951843784,-581.79,0.00012069,2]
[347613829,1735951843794,-500.0,0.00012069,2]
[347613830,1735951843803,-500.0,0.00012069,2]
[347613831,1735951843816,-500.0,0.00012069,2]
[347613832,1735951843825,-500.0,0.00012069,2]
[347613833,1735951843841,-630.3,0.00012069,2]
[347613834,1735951843855,-500.0,0.00012069,2]
[347613835,1735951843865,-557.23,0.00012069,2]
[347613836,1735951843874,-500.0,0.00012069,2]
[347613837,1735951843884,-500.0,0.00012069,2]
[347613838,1735951843894,-500.0,0.00012069,2]
[347613839,1735951843904,-500.0,0.00012069,2]
[347613840,1735951843914,-500.0,0.00012069,2]
[347613841,1735951843923,-500.0,0.00012069,2]
[347613842,1735951843932,-500.0,0.00012069,2]
[347613843,1735951843942,-500.0,0.00012069,2]
[347613844,1735951843951,-500.0,0.00012069,2]
[347613845,1735951843961,-500.0,0.00012069,2]
[347613846,1735951843970,-500.0,0.00012069,2]
[347613847,1735951843980,-500.0,0.00012069,2]
[347613848,1735951843990,-500.0,0.00012069,2]
[347613849,1735951843999,-528.0,0.00012069,2]
[347613850,1735951844008,-500.0,0.00012069,2]
[347613851,1735951844018,-537.24,0.00012069,2]
[347613852,1735951844027,-500.0,0.00012069,2]
[347613853,1735951844036,-517.41,0.00012069,2]
[347613854,1735951844047,-500.0,0.00012069,2]
[347613855,1735951844056,-500.0,0.00012069,2]
[347613856,1735951844066,-500.0,0.00012069,2]
[347613857,1735951844075,-500.0,0.00012069,2]
[347613858,1735951844085,-500.0,0.00012069,2]
[347613859,1735951844094,-500.0,0.00012069,2]
[347613860,1735951844104,-500.0,0.00012069,2]